{"text_format":"2","workbook":"xlsx","n_sheets":2,"sheets":["Listado Cursos Solicitados","Auxiliar"],"not_rendered":{"charts":0,"images":1,"macros":0,"external_links":0,"defined_names":1,"comments":0,"pivot_tables":0},"unopened":[],"bounds":{"document_bytes":16777216,"sheet_cells":100000,"run_cost":"one","rows_first":2000,"rows_last":500,"rows_between":2000,"halvings":0,"cell_chars":16384,"cell_head_chars":4096},"cells_cut":0,"cells_raw":0,"read":"whole","date_system":"1900"}

{"sheet":"Listado Cursos Solicitados","index":0,"n_rows":100,"n_cols":8,"rows_kept":100,"cut":false,"hidden":false,"merged":[[5,0,5,1],[3,3,4,3],[3,4,4,4],[3,5,4,5],[3,6,4,6],[0,0,0,1],[1,0,1,1],[2,0,2,1],[3,0,3,1],[3,7,4,7],[4,0,4,1]]}
["INTERESADO:"]
["SIGLAS:"]
["¿MIEMBRO DEL CNTC?:"]
["% DEL PLENO DEL CNTC:",null,null,"Nº TOTAL CURSOS SOLICITADOS","Nº TOTAL HORAS SOLICITADAS","Nº ALUMNOS TOTAL PREVISTOS","COSTE TOTAL DE LOS CURSOS (€)","COSTE TOTAL QUE SOLICITA SUBVENCIONAR (€)"]
["Nº DE CC.AA. EN LAS QUE TIENE IMPLANTACIÓN:"]
["¿HA OBTENIDO ALGUNA DE ESTAS AYUDAS EN CONVOCATORIAS ANTERIORES?",null,null,{"$f":"IF(SUM(D8:D100)>0,SUM(D8:D100),\"\")","v":""},{"$f":"IF(SUM(Auxiliar!C8:C98)>0,SUM(Auxiliar!C8:C98),\"\")","v":""},{"$f":"IF(SUM(Auxiliar!D8:D98)>0,SUM(Auxiliar!D8:D98),\"\")","v":""},{"$f":"IF(SUM(Auxiliar!E8:E98)>0,SUM(Auxiliar!E8:E98),\"\")","v":""},{"$f":"IF(SUM(Auxiliar!F8:F98)>0,SUM(Auxiliar!F8:F98),\"\")","v":""}]
["ID\n(Nº de orden)","CÓDIGO DE LA ACCIÓN FORMATIVA","DENOMINACIÓN DE LA ACCIÓN FORMATIVA\n(ESCRIBA EL NOMBRE COMPLETO EN LETRAS MAYÚSCULAS)","Nº\nEDICIONES DEL CURSO","Nº\nHORAS POR EDICIÓN","Nº\nALUMNOS PREVISTOS POR EDICIÓN","COSTE TOTAL PREVISTO POR EDICIÓN (€)","SI NO SOLICITA LA SUBVENCIÓN MÁXIMA POSIBLE PARA ALGUNA ACCIÓN FORMATIVA, INDIQUE EL LÍMITE DE SUBVENCIÓN QUE SOLICITA POR EDICIÓN (€)"]
[1]
[2]
[3]
[4]
[5]
[6]
[7]
[8]
[9]
[10]
[11]
[12]
[13]
[14]
[15]
[16]
[17]
[18]
[19]
[20]
[21]
[22]
[23]
[24]
[25]
[26]
[27]
[28]
[29]
[30]
[31]
[32]
[33]
[34]
[35]
[36]
[37]
[38]
[39]
[40]
[41]
[42]
[43]
[44]
[45]
[46]
[47]
[48]
[49]
[50]
[51]
[52]
[53]
[54]
[55]
[56]
[57]
[58]
[59]
[60]
[61]
[62]
[63]
[64]
[65]
[66]
[67]
[68]
[69]
[70]
[71]
[72]
[73]
[74]
[75]
[76]
[77]
[78]
[79]
[80]
[81]
[82]
[83]
[84]
[85]
[86]
[87]
[88]
[89]
[90]
[91]
[92]
[93]

{"sheet":"Auxiliar","index":1,"n_rows":98,"n_cols":6,"rows_kept":98,"cut":false,"hidden":true,"merged":[]}
[1111,"SÍ"]
[1112,"NO"]
[1121]
[1131]
["1132L"]
["1132P"]
[1133]
[1134,null,{"$f":"'Listado Cursos Solicitados'!D8*'Listado Cursos Solicitados'!E8","v":0},{"$f":"'Listado Cursos Solicitados'!D8*'Listado Cursos Solicitados'!F8","v":0},{"$f":"'Listado Cursos Solicitados'!D8*'Listado Cursos Solicitados'!G8","v":0},{"$f":"IF('Listado Cursos Solicitados'!H8<>\"\",'Listado Cursos Solicitados'!H8*'Listado Cursos Solicitados'!D8,'Listado Cursos Solicitados'!G8*'Listado Cursos Solicitados'!D8)","v":0}]
[1135,null,{"$f":"'Listado Cursos Solicitados'!D9*'Listado Cursos Solicitados'!E9","v":0},{"$f":"'Listado Cursos Solicitados'!D9*'Listado Cursos Solicitados'!F9","v":0},{"$f":"'Listado Cursos Solicitados'!D9*'Listado Cursos Solicitados'!G9","v":0},{"$f":"IF('Listado Cursos Solicitados'!H9<>\"\",'Listado Cursos Solicitados'!H9*'Listado Cursos Solicitados'!D9,'Listado Cursos Solicitados'!G9*'Listado Cursos Solicitados'!D9)","v":0}]
[1136,null,{"$f":"'Listado Cursos Solicitados'!D10*'Listado Cursos Solicitados'!E10","v":0},{"$f":"'Listado Cursos Solicitados'!D10*'Listado Cursos Solicitados'!F10","v":0},{"$f":"'Listado Cursos Solicitados'!D10*'Listado Cursos Solicitados'!G10","v":0},{"$f":"IF('Listado Cursos Solicitados'!H10<>\"\",'Listado Cursos Solicitados'!H10*'Listado Cursos Solicitados'!D10,'Listado Cursos Solicitados'!G10*'Listado Cursos Solicitados'!D10)","v":0}]
[1137,null,{"$f":"'Listado Cursos Solicitados'!D11*'Listado Cursos Solicitados'!E11","v":0},{"$f":"'Listado Cursos Solicitados'!D11*'Listado Cursos Solicitados'!F11","v":0},{"$f":"'Listado Cursos Solicitados'!D11*'Listado Cursos Solicitados'!G11","v":0},{"$f":"IF('Listado Cursos Solicitados'!H11<>\"\",'Listado Cursos Solicitados'!H11*'Listado Cursos Solicitados'!D11,'Listado Cursos Solicitados'!G11*'Listado Cursos Solicitados'!D11)","v":0}]
[1141,null,{"$f":"'Listado Cursos Solicitados'!D12*'Listado Cursos Solicitados'!E12","v":0},{"$f":"'Listado Cursos Solicitados'!D12*'Listado Cursos Solicitados'!F12","v":0},{"$f":"'Listado Cursos Solicitados'!D12*'Listado Cursos Solicitados'!G12","v":0},{"$f":"IF('Listado Cursos Solicitados'!H12<>\"\",'Listado Cursos Solicitados'!H12*'Listado Cursos Solicitados'!D12,'Listado Cursos Solicitados'!G12*'Listado Cursos Solicitados'!D12)","v":0}]
[1142,null,{"$f":"'Listado Cursos Solicitados'!D13*'Listado Cursos Solicitados'!E13","v":0},{"$f":"'Listado Cursos Solicitados'!D13*'Listado Cursos Solicitados'!F13","v":0},{"$f":"'Listado Cursos Solicitados'!D13*'Listado Cursos Solicitados'!G13","v":0},{"$f":"IF('Listado Cursos Solicitados'!H13<>\"\",'Listado Cursos Solicitados'!H13*'Listado Cursos Solicitados'!D13,'Listado Cursos Solicitados'!G13*'Listado Cursos Solicitados'!D13)","v":0}]
[1151,null,{"$f":"'Listado Cursos Solicitados'!D14*'Listado Cursos Solicitados'!E14","v":0},{"$f":"'Listado Cursos Solicitados'!D14*'Listado Cursos Solicitados'!F14","v":0},{"$f":"'Listado Cursos Solicitados'!D14*'Listado Cursos Solicitados'!G14","v":0},{"$f":"IF('Listado Cursos Solicitados'!H14<>\"\",'Listado Cursos Solicitados'!H14*'Listado Cursos Solicitados'!D14,'Listado Cursos Solicitados'!G14*'Listado Cursos Solicitados'!D14)","v":0}]
[1152,null,{"$f":"'Listado Cursos Solicitados'!D15*'Listado Cursos Solicitados'!E15","v":0},{"$f":"'Listado Cursos Solicitados'!D15*'Listado Cursos Solicitados'!F15","v":0},{"$f":"'Listado Cursos Solicitados'!D15*'Listado Cursos Solicitados'!G15","v":0},{"$f":"IF('Listado Cursos Solicitados'!H15<>\"\",'Listado Cursos Solicitados'!H15*'Listado Cursos Solicitados'!D15,'Listado Cursos Solicitados'!G15*'Listado Cursos Solicitados'!D15)","v":0}]
[1153,null,{"$f":"'Listado Cursos Solicitados'!D16*'Listado Cursos Solicitados'!E16","v":0},{"$f":"'Listado Cursos Solicitados'!D16*'Listado Cursos Solicitados'!F16","v":0},{"$f":"'Listado Cursos Solicitados'!D16*'Listado Cursos Solicitados'!G16","v":0},{"$f":"IF('Listado Cursos Solicitados'!H16<>\"\",'Listado Cursos Solicitados'!H16*'Listado Cursos Solicitados'!D16,'Listado Cursos Solicitados'!G16*'Listado Cursos Solicitados'!D16)","v":0}]
[1154,null,{"$f":"'Listado Cursos Solicitados'!D17*'Listado Cursos Solicitados'!E17","v":0},{"$f":"'Listado Cursos Solicitados'!D17*'Listado Cursos Solicitados'!F17","v":0},{"$f":"'Listado Cursos Solicitados'!D17*'Listado Cursos Solicitados'!G17","v":0},{"$f":"IF('Listado Cursos Solicitados'!H17<>\"\",'Listado Cursos Solicitados'!H17*'Listado Cursos Solicitados'!D17,'Listado Cursos Solicitados'!G17*'Listado Cursos Solicitados'!D17)","v":0}]
[1155,null,{"$f":"'Listado Cursos Solicitados'!D18*'Listado Cursos Solicitados'!E18","v":0},{"$f":"'Listado Cursos Solicitados'!D18*'Listado Cursos Solicitados'!F18","v":0},{"$f":"'Listado Cursos Solicitados'!D18*'Listado Cursos Solicitados'!G18","v":0},{"$f":"IF('Listado Cursos Solicitados'!H18<>\"\",'Listado Cursos Solicitados'!H18*'Listado Cursos Solicitados'!D18,'Listado Cursos Solicitados'!G18*'Listado Cursos Solicitados'!D18)","v":0}]
[1161,null,{"$f":"'Listado Cursos Solicitados'!D19*'Listado Cursos Solicitados'!E19","v":0},{"$f":"'Listado Cursos Solicitados'!D19*'Listado Cursos Solicitados'!F19","v":0},{"$f":"'Listado Cursos Solicitados'!D19*'Listado Cursos Solicitados'!G19","v":0},{"$f":"IF('Listado Cursos Solicitados'!H19<>\"\",'Listado Cursos Solicitados'!H19*'Listado Cursos Solicitados'!D19,'Listado Cursos Solicitados'!G19*'Listado Cursos Solicitados'!D19)","v":0}]
[1162,null,{"$f":"'Listado Cursos Solicitados'!D20*'Listado Cursos Solicitados'!E20","v":0},{"$f":"'Listado Cursos Solicitados'!D20*'Listado Cursos Solicitados'!F20","v":0},{"$f":"'Listado Cursos Solicitados'!D20*'Listado Cursos Solicitados'!G20","v":0},{"$f":"IF('Listado Cursos Solicitados'!H20<>\"\",'Listado Cursos Solicitados'!H20*'Listado Cursos Solicitados'!D20,'Listado Cursos Solicitados'!G20*'Listado Cursos Solicitados'!D20)","v":0}]
[1163,null,{"$f":"'Listado Cursos Solicitados'!D21*'Listado Cursos Solicitados'!E21","v":0},{"$f":"'Listado Cursos Solicitados'!D21*'Listado Cursos Solicitados'!F21","v":0},{"$f":"'Listado Cursos Solicitados'!D21*'Listado Cursos Solicitados'!G21","v":0},{"$f":"IF('Listado Cursos Solicitados'!H21<>\"\",'Listado Cursos Solicitados'!H21*'Listado Cursos Solicitados'!D21,'Listado Cursos Solicitados'!G21*'Listado Cursos Solicitados'!D21)","v":0}]
[1171,null,{"$f":"'Listado Cursos Solicitados'!D22*'Listado Cursos Solicitados'!E22","v":0},{"$f":"'Listado Cursos Solicitados'!D22*'Listado Cursos Solicitados'!F22","v":0},{"$f":"'Listado Cursos Solicitados'!D22*'Listado Cursos Solicitados'!G22","v":0},{"$f":"IF('Listado Cursos Solicitados'!H22<>\"\",'Listado Cursos Solicitados'!H22*'Listado Cursos Solicitados'!D22,'Listado Cursos Solicitados'!G22*'Listado Cursos Solicitados'!D22)","v":0}]
[1211,null,{"$f":"'Listado Cursos Solicitados'!D24*'Listado Cursos Solicitados'!E24","v":0},{"$f":"'Listado Cursos Solicitados'!D24*'Listado Cursos Solicitados'!F24","v":0},{"$f":"'Listado Cursos Solicitados'!D24*'Listado Cursos Solicitados'!G24","v":0},{"$f":"IF('Listado Cursos Solicitados'!H24<>\"\",'Listado Cursos Solicitados'!H24*'Listado Cursos Solicitados'!D24,'Listado Cursos Solicitados'!G24*'Listado Cursos Solicitados'!D24)","v":0}]
[1212,null,{"$f":"'Listado Cursos Solicitados'!D25*'Listado Cursos Solicitados'!E25","v":0},{"$f":"'Listado Cursos Solicitados'!D25*'Listado Cursos Solicitados'!F25","v":0},{"$f":"'Listado Cursos Solicitados'!D25*'Listado Cursos Solicitados'!G25","v":0},{"$f":"IF('Listado Cursos Solicitados'!H25<>\"\",'Listado Cursos Solicitados'!H25*'Listado Cursos Solicitados'!D25,'Listado Cursos Solicitados'!G25*'Listado Cursos Solicitados'!D25)","v":0}]
[1221,null,{"$f":"'Listado Cursos Solicitados'!D26*'Listado Cursos Solicitados'!E26","v":0},{"$f":"'Listado Cursos Solicitados'!D26*'Listado Cursos Solicitados'!F26","v":0},{"$f":"'Listado Cursos Solicitados'!D26*'Listado Cursos Solicitados'!G26","v":0},{"$f":"IF('Listado Cursos Solicitados'!H26<>\"\",'Listado Cursos Solicitados'!H26*'Listado Cursos Solicitados'!D26,'Listado Cursos Solicitados'!G26*'Listado Cursos Solicitados'!D26)","v":0}]
[1311,null,{"$f":"'Listado Cursos Solicitados'!D28*'Listado Cursos Solicitados'!E28","v":0},{"$f":"'Listado Cursos Solicitados'!D28*'Listado Cursos Solicitados'!F28","v":0},{"$f":"'Listado Cursos Solicitados'!D28*'Listado Cursos Solicitados'!G28","v":0},{"$f":"IF('Listado Cursos Solicitados'!H28<>\"\",'Listado Cursos Solicitados'!H28*'Listado Cursos Solicitados'!D28,'Listado Cursos Solicitados'!G28*'Listado Cursos Solicitados'!D28)","v":0}]
[1312,null,{"$f":"'Listado Cursos Solicitados'!D29*'Listado Cursos Solicitados'!E29","v":0},{"$f":"'Listado Cursos Solicitados'!D29*'Listado Cursos Solicitados'!F29","v":0},{"$f":"'Listado Cursos Solicitados'!D29*'Listado Cursos Solicitados'!G29","v":0},{"$f":"IF('Listado Cursos Solicitados'!H29<>\"\",'Listado Cursos Solicitados'!H29*'Listado Cursos Solicitados'!D29,'Listado Cursos Solicitados'!G29*'Listado Cursos Solicitados'!D29)","v":0}]
[2111,null,{"$f":"'Listado Cursos Solicitados'!D30*'Listado Cursos Solicitados'!E30","v":0},{"$f":"'Listado Cursos Solicitados'!D30*'Listado Cursos Solicitados'!F30","v":0},{"$f":"'Listado Cursos Solicitados'!D30*'Listado Cursos Solicitados'!G30","v":0},{"$f":"IF('Listado Cursos Solicitados'!H30<>\"\",'Listado Cursos Solicitados'!H30*'Listado Cursos Solicitados'!D30,'Listado Cursos Solicitados'!G30*'Listado Cursos Solicitados'!D30)","v":0}]
[2112,null,{"$f":"'Listado Cursos Solicitados'!D31*'Listado Cursos Solicitados'!E31","v":0},{"$f":"'Listado Cursos Solicitados'!D31*'Listado Cursos Solicitados'!F31","v":0},{"$f":"'Listado Cursos Solicitados'!D31*'Listado Cursos Solicitados'!G31","v":0},{"$f":"IF('Listado Cursos Solicitados'!H31<>\"\",'Listado Cursos Solicitados'!H31*'Listado Cursos Solicitados'!D31,'Listado Cursos Solicitados'!G31*'Listado Cursos Solicitados'!D31)","v":0}]
[2121,null,{"$f":"'Listado Cursos Solicitados'!D32*'Listado Cursos Solicitados'!E32","v":0},{"$f":"'Listado Cursos Solicitados'!D32*'Listado Cursos Solicitados'!F32","v":0},{"$f":"'Listado Cursos Solicitados'!D32*'Listado Cursos Solicitados'!G32","v":0},{"$f":"IF('Listado Cursos Solicitados'!H32<>\"\",'Listado Cursos Solicitados'!H32*'Listado Cursos Solicitados'!D32,'Listado Cursos Solicitados'!G32*'Listado Cursos Solicitados'!D32)","v":0}]
[2131,null,{"$f":"'Listado Cursos Solicitados'!D33*'Listado Cursos Solicitados'!E33","v":0},{"$f":"'Listado Cursos Solicitados'!D33*'Listado Cursos Solicitados'!F33","v":0},{"$f":"'Listado Cursos Solicitados'!D33*'Listado Cursos Solicitados'!G33","v":0},{"$f":"IF('Listado Cursos Solicitados'!H33<>\"\",'Listado Cursos Solicitados'!H33*'Listado Cursos Solicitados'!D33,'Listado Cursos Solicitados'!G33*'Listado Cursos Solicitados'!D33)","v":0}]
[2134,null,{"$f":"'Listado Cursos Solicitados'!D34*'Listado Cursos Solicitados'!E34","v":0},{"$f":"'Listado Cursos Solicitados'!D34*'Listado Cursos Solicitados'!F34","v":0},{"$f":"'Listado Cursos Solicitados'!D34*'Listado Cursos Solicitados'!G34","v":0},{"$f":"IF('Listado Cursos Solicitados'!H34<>\"\",'Listado Cursos Solicitados'!H34*'Listado Cursos Solicitados'!D34,'Listado Cursos Solicitados'!G34*'Listado Cursos Solicitados'!D34)","v":0}]
[2136,null,{"$f":"'Listado Cursos Solicitados'!D35*'Listado Cursos Solicitados'!E35","v":0},{"$f":"'Listado Cursos Solicitados'!D35*'Listado Cursos Solicitados'!F35","v":0},{"$f":"'Listado Cursos Solicitados'!D35*'Listado Cursos Solicitados'!G35","v":0},{"$f":"IF('Listado Cursos Solicitados'!H35<>\"\",'Listado Cursos Solicitados'!H35*'Listado Cursos Solicitados'!D35,'Listado Cursos Solicitados'!G35*'Listado Cursos Solicitados'!D35)","v":0}]
[2141,null,{"$f":"'Listado Cursos Solicitados'!D36*'Listado Cursos Solicitados'!E36","v":0},{"$f":"'Listado Cursos Solicitados'!D36*'Listado Cursos Solicitados'!F36","v":0},{"$f":"'Listado Cursos Solicitados'!D36*'Listado Cursos Solicitados'!G36","v":0},{"$f":"IF('Listado Cursos Solicitados'!H36<>\"\",'Listado Cursos Solicitados'!H36*'Listado Cursos Solicitados'!D36,'Listado Cursos Solicitados'!G36*'Listado Cursos Solicitados'!D36)","v":0}]
[2151,null,{"$f":"'Listado Cursos Solicitados'!D37*'Listado Cursos Solicitados'!E37","v":0},{"$f":"'Listado Cursos Solicitados'!D37*'Listado Cursos Solicitados'!F37","v":0},{"$f":"'Listado Cursos Solicitados'!D37*'Listado Cursos Solicitados'!G37","v":0},{"$f":"IF('Listado Cursos Solicitados'!H37<>\"\",'Listado Cursos Solicitados'!H37*'Listado Cursos Solicitados'!D37,'Listado Cursos Solicitados'!G37*'Listado Cursos Solicitados'!D37)","v":0}]
[2152,null,{"$f":"'Listado Cursos Solicitados'!D38*'Listado Cursos Solicitados'!E38","v":0},{"$f":"'Listado Cursos Solicitados'!D38*'Listado Cursos Solicitados'!F38","v":0},{"$f":"'Listado Cursos Solicitados'!D38*'Listado Cursos Solicitados'!G38","v":0},{"$f":"IF('Listado Cursos Solicitados'!H38<>\"\",'Listado Cursos Solicitados'!H38*'Listado Cursos Solicitados'!D38,'Listado Cursos Solicitados'!G38*'Listado Cursos Solicitados'!D38)","v":0}]
[2153,null,{"$f":"'Listado Cursos Solicitados'!D39*'Listado Cursos Solicitados'!E39","v":0},{"$f":"'Listado Cursos Solicitados'!D39*'Listado Cursos Solicitados'!F39","v":0},{"$f":"'Listado Cursos Solicitados'!D39*'Listado Cursos Solicitados'!G39","v":0},{"$f":"IF('Listado Cursos Solicitados'!H39<>\"\",'Listado Cursos Solicitados'!H39*'Listado Cursos Solicitados'!D39,'Listado Cursos Solicitados'!G39*'Listado Cursos Solicitados'!D39)","v":0}]
[2154,null,{"$f":"'Listado Cursos Solicitados'!D40*'Listado Cursos Solicitados'!E40","v":0},{"$f":"'Listado Cursos Solicitados'!D40*'Listado Cursos Solicitados'!F40","v":0},{"$f":"'Listado Cursos Solicitados'!D40*'Listado Cursos Solicitados'!G40","v":0},{"$f":"IF('Listado Cursos Solicitados'!H40<>\"\",'Listado Cursos Solicitados'!H40*'Listado Cursos Solicitados'!D40,'Listado Cursos Solicitados'!G40*'Listado Cursos Solicitados'!D40)","v":0}]
[2155,null,{"$f":"'Listado Cursos Solicitados'!D41*'Listado Cursos Solicitados'!E41","v":0},{"$f":"'Listado Cursos Solicitados'!D41*'Listado Cursos Solicitados'!F41","v":0},{"$f":"'Listado Cursos Solicitados'!D41*'Listado Cursos Solicitados'!G41","v":0},{"$f":"IF('Listado Cursos Solicitados'!H41<>\"\",'Listado Cursos Solicitados'!H41*'Listado Cursos Solicitados'!D41,'Listado Cursos Solicitados'!G41*'Listado Cursos Solicitados'!D41)","v":0}]
[2161,null,{"$f":"'Listado Cursos Solicitados'!D42*'Listado Cursos Solicitados'!E42","v":0},{"$f":"'Listado Cursos Solicitados'!D42*'Listado Cursos Solicitados'!F42","v":0},{"$f":"'Listado Cursos Solicitados'!D42*'Listado Cursos Solicitados'!G42","v":0},{"$f":"IF('Listado Cursos Solicitados'!H42<>\"\",'Listado Cursos Solicitados'!H42*'Listado Cursos Solicitados'!D42,'Listado Cursos Solicitados'!G42*'Listado Cursos Solicitados'!D42)","v":0}]
[2162,null,{"$f":"'Listado Cursos Solicitados'!D43*'Listado Cursos Solicitados'!E43","v":0},{"$f":"'Listado Cursos Solicitados'!D43*'Listado Cursos Solicitados'!F43","v":0},{"$f":"'Listado Cursos Solicitados'!D43*'Listado Cursos Solicitados'!G43","v":0},{"$f":"IF('Listado Cursos Solicitados'!H43<>\"\",'Listado Cursos Solicitados'!H43*'Listado Cursos Solicitados'!D43,'Listado Cursos Solicitados'!G43*'Listado Cursos Solicitados'!D43)","v":0}]
[2163,null,{"$f":"'Listado Cursos Solicitados'!D44*'Listado Cursos Solicitados'!E44","v":0},{"$f":"'Listado Cursos Solicitados'!D44*'Listado Cursos Solicitados'!F44","v":0},{"$f":"'Listado Cursos Solicitados'!D44*'Listado Cursos Solicitados'!G44","v":0},{"$f":"IF('Listado Cursos Solicitados'!H44<>\"\",'Listado Cursos Solicitados'!H44*'Listado Cursos Solicitados'!D44,'Listado Cursos Solicitados'!G44*'Listado Cursos Solicitados'!D44)","v":0}]
[2171,null,{"$f":"'Listado Cursos Solicitados'!D45*'Listado Cursos Solicitados'!E45","v":0},{"$f":"'Listado Cursos Solicitados'!D45*'Listado Cursos Solicitados'!F45","v":0},{"$f":"'Listado Cursos Solicitados'!D45*'Listado Cursos Solicitados'!G45","v":0},{"$f":"IF('Listado Cursos Solicitados'!H45<>\"\",'Listado Cursos Solicitados'!H45*'Listado Cursos Solicitados'!D45,'Listado Cursos Solicitados'!G45*'Listado Cursos Solicitados'!D45)","v":0}]
[2211,null,{"$f":"'Listado Cursos Solicitados'!D46*'Listado Cursos Solicitados'!E46","v":0},{"$f":"'Listado Cursos Solicitados'!D46*'Listado Cursos Solicitados'!F46","v":0},{"$f":"'Listado Cursos Solicitados'!D46*'Listado Cursos Solicitados'!G46","v":0},{"$f":"IF('Listado Cursos Solicitados'!H46<>\"\",'Listado Cursos Solicitados'!H46*'Listado Cursos Solicitados'!D46,'Listado Cursos Solicitados'!G46*'Listado Cursos Solicitados'!D46)","v":0}]
[2212,null,{"$f":"'Listado Cursos Solicitados'!D47*'Listado Cursos Solicitados'!E47","v":0},{"$f":"'Listado Cursos Solicitados'!D47*'Listado Cursos Solicitados'!F47","v":0},{"$f":"'Listado Cursos Solicitados'!D47*'Listado Cursos Solicitados'!G47","v":0},{"$f":"IF('Listado Cursos Solicitados'!H47<>\"\",'Listado Cursos Solicitados'!H47*'Listado Cursos Solicitados'!D47,'Listado Cursos Solicitados'!G47*'Listado Cursos Solicitados'!D47)","v":0}]
[2221,null,{"$f":"'Listado Cursos Solicitados'!D48*'Listado Cursos Solicitados'!E48","v":0},{"$f":"'Listado Cursos Solicitados'!D48*'Listado Cursos Solicitados'!F48","v":0},{"$f":"'Listado Cursos Solicitados'!D48*'Listado Cursos Solicitados'!G48","v":0},{"$f":"IF('Listado Cursos Solicitados'!H48<>\"\",'Listado Cursos Solicitados'!H48*'Listado Cursos Solicitados'!D48,'Listado Cursos Solicitados'!G48*'Listado Cursos Solicitados'!D48)","v":0}]
[2311,null,{"$f":"'Listado Cursos Solicitados'!D49*'Listado Cursos Solicitados'!E49","v":0},{"$f":"'Listado Cursos Solicitados'!D49*'Listado Cursos Solicitados'!F49","v":0},{"$f":"'Listado Cursos Solicitados'!D49*'Listado Cursos Solicitados'!G49","v":0},{"$f":"IF('Listado Cursos Solicitados'!H49<>\"\",'Listado Cursos Solicitados'!H49*'Listado Cursos Solicitados'!D49,'Listado Cursos Solicitados'!G49*'Listado Cursos Solicitados'!D49)","v":0}]
[2312,null,{"$f":"'Listado Cursos Solicitados'!D50*'Listado Cursos Solicitados'!E50","v":0},{"$f":"'Listado Cursos Solicitados'!D50*'Listado Cursos Solicitados'!F50","v":0},{"$f":"'Listado Cursos Solicitados'!D50*'Listado Cursos Solicitados'!G50","v":0},{"$f":"IF('Listado Cursos Solicitados'!H50<>\"\",'Listado Cursos Solicitados'!H50*'Listado Cursos Solicitados'!D50,'Listado Cursos Solicitados'!G50*'Listado Cursos Solicitados'!D50)","v":0}]
["3132L",null,{"$f":"'Listado Cursos Solicitados'!D51*'Listado Cursos Solicitados'!E51","v":0},{"$f":"'Listado Cursos Solicitados'!D51*'Listado Cursos Solicitados'!F51","v":0},{"$f":"'Listado Cursos Solicitados'!D51*'Listado Cursos Solicitados'!G51","v":0},{"$f":"IF('Listado Cursos Solicitados'!H51<>\"\",'Listado Cursos Solicitados'!H51*'Listado Cursos Solicitados'!D51,'Listado Cursos Solicitados'!G51*'Listado Cursos Solicitados'!D51)","v":0}]
["3132P",null,{"$f":"'Listado Cursos Solicitados'!D52*'Listado Cursos Solicitados'!E52","v":0},{"$f":"'Listado Cursos Solicitados'!D52*'Listado Cursos Solicitados'!F52","v":0},{"$f":"'Listado Cursos Solicitados'!D52*'Listado Cursos Solicitados'!G52","v":0},{"$f":"IF('Listado Cursos Solicitados'!H52<>\"\",'Listado Cursos Solicitados'!H52*'Listado Cursos Solicitados'!D52,'Listado Cursos Solicitados'!G52*'Listado Cursos Solicitados'!D52)","v":0}]
[3137,null,{"$f":"'Listado Cursos Solicitados'!D53*'Listado Cursos Solicitados'!E53","v":0},{"$f":"'Listado Cursos Solicitados'!D53*'Listado Cursos Solicitados'!F53","v":0},{"$f":"'Listado Cursos Solicitados'!D53*'Listado Cursos Solicitados'!G53","v":0},{"$f":"IF('Listado Cursos Solicitados'!H53<>\"\",'Listado Cursos Solicitados'!H53*'Listado Cursos Solicitados'!D53,'Listado Cursos Solicitados'!G53*'Listado Cursos Solicitados'!D53)","v":0}]
[null,null,{"$f":"'Listado Cursos Solicitados'!D54*'Listado Cursos Solicitados'!E54","v":0},{"$f":"'Listado Cursos Solicitados'!D54*'Listado Cursos Solicitados'!F54","v":0},{"$f":"'Listado Cursos Solicitados'!D54*'Listado Cursos Solicitados'!G54","v":0},{"$f":"IF('Listado Cursos Solicitados'!H54<>\"\",'Listado Cursos Solicitados'!H54*'Listado Cursos Solicitados'!D54,'Listado Cursos Solicitados'!G54*'Listado Cursos Solicitados'!D54)","v":0}]
[null,null,{"$f":"'Listado Cursos Solicitados'!D55*'Listado Cursos Solicitados'!E55","v":0},{"$f":"'Listado Cursos Solicitados'!D55*'Listado Cursos Solicitados'!F55","v":0},{"$f":"'Listado Cursos Solicitados'!D55*'Listado Cursos Solicitados'!G55","v":0},{"$f":"IF('Listado Cursos Solicitados'!H55<>\"\",'Listado Cursos Solicitados'!H55*'Listado Cursos Solicitados'!D55,'Listado Cursos Solicitados'!G55*'Listado Cursos Solicitados'!D55)","v":0}]
[null,null,{"$f":"'Listado Cursos Solicitados'!D56*'Listado Cursos Solicitados'!E56","v":0},{"$f":"'Listado Cursos Solicitados'!D56*'Listado Cursos Solicitados'!F56","v":0},{"$f":"'Listado Cursos Solicitados'!D56*'Listado Cursos Solicitados'!G56","v":0},{"$f":"IF('Listado Cursos Solicitados'!H56<>\"\",'Listado Cursos Solicitados'!H56*'Listado Cursos Solicitados'!D56,'Listado Cursos Solicitados'!G56*'Listado Cursos Solicitados'!D56)","v":0}]
[null,null,{"$f":"'Listado Cursos Solicitados'!D57*'Listado Cursos Solicitados'!E57","v":0},{"$f":"'Listado Cursos Solicitados'!D57*'Listado Cursos Solicitados'!F57","v":0},{"$f":"'Listado Cursos Solicitados'!D57*'Listado Cursos Solicitados'!G57","v":0},{"$f":"IF('Listado Cursos Solicitados'!H57<>\"\",'Listado Cursos Solicitados'!H57*'Listado Cursos Solicitados'!D57,'Listado Cursos Solicitados'!G57*'Listado Cursos Solicitados'!D57)","v":0}]
[null,null,{"$f":"'Listado Cursos Solicitados'!D58*'Listado Cursos Solicitados'!E58","v":0},{"$f":"'Listado Cursos Solicitados'!D58*'Listado Cursos Solicitados'!F58","v":0},{"$f":"'Listado Cursos Solicitados'!D58*'Listado Cursos Solicitados'!G58","v":0},{"$f":"IF('Listado Cursos Solicitados'!H58<>\"\",'Listado Cursos Solicitados'!H58*'Listado Cursos Solicitados'!D58,'Listado Cursos Solicitados'!G58*'Listado Cursos Solicitados'!D58)","v":0}]
[null,null,{"$f":"'Listado Cursos Solicitados'!D59*'Listado Cursos Solicitados'!E59","v":0},{"$f":"'Listado Cursos Solicitados'!D59*'Listado Cursos Solicitados'!F59","v":0},{"$f":"'Listado Cursos Solicitados'!D59*'Listado Cursos Solicitados'!G59","v":0},{"$f":"IF('Listado Cursos Solicitados'!H59<>\"\",'Listado Cursos Solicitados'!H59*'Listado Cursos Solicitados'!D59,'Listado Cursos Solicitados'!G59*'Listado Cursos Solicitados'!D59)","v":0}]
[null,null,{"$f":"'Listado Cursos Solicitados'!D60*'Listado Cursos Solicitados'!E60","v":0},{"$f":"'Listado Cursos Solicitados'!D60*'Listado Cursos Solicitados'!F60","v":0},{"$f":"'Listado Cursos Solicitados'!D60*'Listado Cursos Solicitados'!G60","v":0},{"$f":"IF('Listado Cursos Solicitados'!H60<>\"\",'Listado Cursos Solicitados'!H60*'Listado Cursos Solicitados'!D60,'Listado Cursos Solicitados'!G60*'Listado Cursos Solicitados'!D60)","v":0}]
[null,null,{"$f":"'Listado Cursos Solicitados'!D61*'Listado Cursos Solicitados'!E61","v":0},{"$f":"'Listado Cursos Solicitados'!D61*'Listado Cursos Solicitados'!F61","v":0},{"$f":"'Listado Cursos Solicitados'!D61*'Listado Cursos Solicitados'!G61","v":0},{"$f":"IF('Listado Cursos Solicitados'!H61<>\"\",'Listado Cursos Solicitados'!H61*'Listado Cursos Solicitados'!D61,'Listado Cursos Solicitados'!G61*'Listado Cursos Solicitados'!D61)","v":0}]
[null,null,{"$f":"'Listado Cursos Solicitados'!D62*'Listado Cursos Solicitados'!E62","v":0},{"$f":"'Listado Cursos Solicitados'!D62*'Listado Cursos Solicitados'!F62","v":0},{"$f":"'Listado Cursos Solicitados'!D62*'Listado Cursos Solicitados'!G62","v":0},{"$f":"IF('Listado Cursos Solicitados'!H62<>\"\",'Listado Cursos Solicitados'!H62*'Listado Cursos Solicitados'!D62,'Listado Cursos Solicitados'!G62*'Listado Cursos Solicitados'!D62)","v":0}]
[null,null,{"$f":"'Listado Cursos Solicitados'!D63*'Listado Cursos Solicitados'!E63","v":0},{"$f":"'Listado Cursos Solicitados'!D63*'Listado Cursos Solicitados'!F63","v":0},{"$f":"'Listado Cursos Solicitados'!D63*'Listado Cursos Solicitados'!G63","v":0},{"$f":"IF('Listado Cursos Solicitados'!H63<>\"\",'Listado Cursos Solicitados'!H63*'Listado Cursos Solicitados'!D63,'Listado Cursos Solicitados'!G63*'Listado Cursos Solicitados'!D63)","v":0}]
[null,null,{"$f":"'Listado Cursos Solicitados'!D64*'Listado Cursos Solicitados'!E64","v":0},{"$f":"'Listado Cursos Solicitados'!D64*'Listado Cursos Solicitados'!F64","v":0},{"$f":"'Listado Cursos Solicitados'!D64*'Listado Cursos Solicitados'!G64","v":0},{"$f":"IF('Listado Cursos Solicitados'!H64<>\"\",'Listado Cursos Solicitados'!H64*'Listado Cursos Solicitados'!D64,'Listado Cursos Solicitados'!G64*'Listado Cursos Solicitados'!D64)","v":0}]
[null,null,{"$f":"'Listado Cursos Solicitados'!D65*'Listado Cursos Solicitados'!E65","v":0},{"$f":"'Listado Cursos Solicitados'!D65*'Listado Cursos Solicitados'!F65","v":0},{"$f":"'Listado Cursos Solicitados'!D65*'Listado Cursos Solicitados'!G65","v":0},{"$f":"IF('Listado Cursos Solicitados'!H65<>\"\",'Listado Cursos Solicitados'!H65*'Listado Cursos Solicitados'!D65,'Listado Cursos Solicitados'!G65*'Listado Cursos Solicitados'!D65)","v":0}]
[null,null,{"$f":"'Listado Cursos Solicitados'!D66*'Listado Cursos Solicitados'!E66","v":0},{"$f":"'Listado Cursos Solicitados'!D66*'Listado Cursos Solicitados'!F66","v":0},{"$f":"'Listado Cursos Solicitados'!D66*'Listado Cursos Solicitados'!G66","v":0},{"$f":"IF('Listado Cursos Solicitados'!H66<>\"\",'Listado Cursos Solicitados'!H66*'Listado Cursos Solicitados'!D66,'Listado Cursos Solicitados'!G66*'Listado Cursos Solicitados'!D66)","v":0}]
[null,null,{"$f":"'Listado Cursos Solicitados'!D67*'Listado Cursos Solicitados'!E67","v":0},{"$f":"'Listado Cursos Solicitados'!D67*'Listado Cursos Solicitados'!F67","v":0},{"$f":"'Listado Cursos Solicitados'!D67*'Listado Cursos Solicitados'!G67","v":0},{"$f":"IF('Listado Cursos Solicitados'!H67<>\"\",'Listado Cursos Solicitados'!H67*'Listado Cursos Solicitados'!D67,'Listado Cursos Solicitados'!G67*'Listado Cursos Solicitados'!D67)","v":0}]
[null,null,{"$f":"'Listado Cursos Solicitados'!D68*'Listado Cursos Solicitados'!E68","v":0},{"$f":"'Listado Cursos Solicitados'!D68*'Listado Cursos Solicitados'!F68","v":0},{"$f":"'Listado Cursos Solicitados'!D68*'Listado Cursos Solicitados'!G68","v":0},{"$f":"IF('Listado Cursos Solicitados'!H68<>\"\",'Listado Cursos Solicitados'!H68*'Listado Cursos Solicitados'!D68,'Listado Cursos Solicitados'!G68*'Listado Cursos Solicitados'!D68)","v":0}]
[null,null,{"$f":"'Listado Cursos Solicitados'!D69*'Listado Cursos Solicitados'!E69","v":0},{"$f":"'Listado Cursos Solicitados'!D69*'Listado Cursos Solicitados'!F69","v":0},{"$f":"'Listado Cursos Solicitados'!D69*'Listado Cursos Solicitados'!G69","v":0},{"$f":"IF('Listado Cursos Solicitados'!H69<>\"\",'Listado Cursos Solicitados'!H69*'Listado Cursos Solicitados'!D69,'Listado Cursos Solicitados'!G69*'Listado Cursos Solicitados'!D69)","v":0}]
[null,null,{"$f":"'Listado Cursos Solicitados'!D70*'Listado Cursos Solicitados'!E70","v":0},{"$f":"'Listado Cursos Solicitados'!D70*'Listado Cursos Solicitados'!F70","v":0},{"$f":"'Listado Cursos Solicitados'!D70*'Listado Cursos Solicitados'!G70","v":0},{"$f":"IF('Listado Cursos Solicitados'!H70<>\"\",'Listado Cursos Solicitados'!H70*'Listado Cursos Solicitados'!D70,'Listado Cursos Solicitados'!G70*'Listado Cursos Solicitados'!D70)","v":0}]
[null,null,{"$f":"'Listado Cursos Solicitados'!D71*'Listado Cursos Solicitados'!E71","v":0},{"$f":"'Listado Cursos Solicitados'!D71*'Listado Cursos Solicitados'!F71","v":0},{"$f":"'Listado Cursos Solicitados'!D71*'Listado Cursos Solicitados'!G71","v":0},{"$f":"IF('Listado Cursos Solicitados'!H71<>\"\",'Listado Cursos Solicitados'!H71*'Listado Cursos Solicitados'!D71,'Listado Cursos Solicitados'!G71*'Listado Cursos Solicitados'!D71)","v":0}]
[null,null,{"$f":"'Listado Cursos Solicitados'!D72*'Listado Cursos Solicitados'!E72","v":0},{"$f":"'Listado Cursos Solicitados'!D72*'Listado Cursos Solicitados'!F72","v":0},{"$f":"'Listado Cursos Solicitados'!D72*'Listado Cursos Solicitados'!G72","v":0},{"$f":"IF('Listado Cursos Solicitados'!H72<>\"\",'Listado Cursos Solicitados'!H72*'Listado Cursos Solicitados'!D72,'Listado Cursos Solicitados'!G72*'Listado Cursos Solicitados'!D72)","v":0}]
[null,null,{"$f":"'Listado Cursos Solicitados'!D73*'Listado Cursos Solicitados'!E73","v":0},{"$f":"'Listado Cursos Solicitados'!D73*'Listado Cursos Solicitados'!F73","v":0},{"$f":"'Listado Cursos Solicitados'!D73*'Listado Cursos Solicitados'!G73","v":0},{"$f":"IF('Listado Cursos Solicitados'!H73<>\"\",'Listado Cursos Solicitados'!H73*'Listado Cursos Solicitados'!D73,'Listado Cursos Solicitados'!G73*'Listado Cursos Solicitados'!D73)","v":0}]
[null,null,{"$f":"'Listado Cursos Solicitados'!D74*'Listado Cursos Solicitados'!E74","v":0},{"$f":"'Listado Cursos Solicitados'!D74*'Listado Cursos Solicitados'!F74","v":0},{"$f":"'Listado Cursos Solicitados'!D74*'Listado Cursos Solicitados'!G74","v":0},{"$f":"IF('Listado Cursos Solicitados'!H74<>\"\",'Listado Cursos Solicitados'!H74*'Listado Cursos Solicitados'!D74,'Listado Cursos Solicitados'!G74*'Listado Cursos Solicitados'!D74)","v":0}]
[null,null,{"$f":"'Listado Cursos Solicitados'!D75*'Listado Cursos Solicitados'!E75","v":0},{"$f":"'Listado Cursos Solicitados'!D75*'Listado Cursos Solicitados'!F75","v":0},{"$f":"'Listado Cursos Solicitados'!D75*'Listado Cursos Solicitados'!G75","v":0},{"$f":"IF('Listado Cursos Solicitados'!H75<>\"\",'Listado Cursos Solicitados'!H75*'Listado Cursos Solicitados'!D75,'Listado Cursos Solicitados'!G75*'Listado Cursos Solicitados'!D75)","v":0}]
[null,null,{"$f":"'Listado Cursos Solicitados'!D76*'Listado Cursos Solicitados'!E76","v":0},{"$f":"'Listado Cursos Solicitados'!D76*'Listado Cursos Solicitados'!F76","v":0},{"$f":"'Listado Cursos Solicitados'!D76*'Listado Cursos Solicitados'!G76","v":0},{"$f":"IF('Listado Cursos Solicitados'!H76<>\"\",'Listado Cursos Solicitados'!H76*'Listado Cursos Solicitados'!D76,'Listado Cursos Solicitados'!G76*'Listado Cursos Solicitados'!D76)","v":0}]
[null,null,{"$f":"'Listado Cursos Solicitados'!D77*'Listado Cursos Solicitados'!E77","v":0},{"$f":"'Listado Cursos Solicitados'!D77*'Listado Cursos Solicitados'!F77","v":0},{"$f":"'Listado Cursos Solicitados'!D77*'Listado Cursos Solicitados'!G77","v":0},{"$f":"IF('Listado Cursos Solicitados'!H77<>\"\",'Listado Cursos Solicitados'!H77*'Listado Cursos Solicitados'!D77,'Listado Cursos Solicitados'!G77*'Listado Cursos Solicitados'!D77)","v":0}]
[null,null,{"$f":"'Listado Cursos Solicitados'!D78*'Listado Cursos Solicitados'!E78","v":0},{"$f":"'Listado Cursos Solicitados'!D78*'Listado Cursos Solicitados'!F78","v":0},{"$f":"'Listado Cursos Solicitados'!D78*'Listado Cursos Solicitados'!G78","v":0},{"$f":"IF('Listado Cursos Solicitados'!H78<>\"\",'Listado Cursos Solicitados'!H78*'Listado Cursos Solicitados'!D78,'Listado Cursos Solicitados'!G78*'Listado Cursos Solicitados'!D78)","v":0}]
[null,null,{"$f":"'Listado Cursos Solicitados'!D79*'Listado Cursos Solicitados'!E79","v":0},{"$f":"'Listado Cursos Solicitados'!D79*'Listado Cursos Solicitados'!F79","v":0},{"$f":"'Listado Cursos Solicitados'!D79*'Listado Cursos Solicitados'!G79","v":0},{"$f":"IF('Listado Cursos Solicitados'!H79<>\"\",'Listado Cursos Solicitados'!H79*'Listado Cursos Solicitados'!D79,'Listado Cursos Solicitados'!G79*'Listado Cursos Solicitados'!D79)","v":0}]
[null,null,{"$f":"'Listado Cursos Solicitados'!D80*'Listado Cursos Solicitados'!E80","v":0},{"$f":"'Listado Cursos Solicitados'!D80*'Listado Cursos Solicitados'!F80","v":0},{"$f":"'Listado Cursos Solicitados'!D80*'Listado Cursos Solicitados'!G80","v":0},{"$f":"IF('Listado Cursos Solicitados'!H80<>\"\",'Listado Cursos Solicitados'!H80*'Listado Cursos Solicitados'!D80,'Listado Cursos Solicitados'!G80*'Listado Cursos Solicitados'!D80)","v":0}]
[null,null,{"$f":"'Listado Cursos Solicitados'!D81*'Listado Cursos Solicitados'!E81","v":0},{"$f":"'Listado Cursos Solicitados'!D81*'Listado Cursos Solicitados'!F81","v":0},{"$f":"'Listado Cursos Solicitados'!D81*'Listado Cursos Solicitados'!G81","v":0},{"$f":"IF('Listado Cursos Solicitados'!H81<>\"\",'Listado Cursos Solicitados'!H81*'Listado Cursos Solicitados'!D81,'Listado Cursos Solicitados'!G81*'Listado Cursos Solicitados'!D81)","v":0}]
[null,null,{"$f":"'Listado Cursos Solicitados'!D82*'Listado Cursos Solicitados'!E82","v":0},{"$f":"'Listado Cursos Solicitados'!D82*'Listado Cursos Solicitados'!F82","v":0},{"$f":"'Listado Cursos Solicitados'!D82*'Listado Cursos Solicitados'!G82","v":0},{"$f":"IF('Listado Cursos Solicitados'!H82<>\"\",'Listado Cursos Solicitados'!H82*'Listado Cursos Solicitados'!D82,'Listado Cursos Solicitados'!G82*'Listado Cursos Solicitados'!D82)","v":0}]
[null,null,{"$f":"'Listado Cursos Solicitados'!D83*'Listado Cursos Solicitados'!E83","v":0},{"$f":"'Listado Cursos Solicitados'!D83*'Listado Cursos Solicitados'!F83","v":0},{"$f":"'Listado Cursos Solicitados'!D83*'Listado Cursos Solicitados'!G83","v":0},{"$f":"IF('Listado Cursos Solicitados'!H83<>\"\",'Listado Cursos Solicitados'!H83*'Listado Cursos Solicitados'!D83,'Listado Cursos Solicitados'!G83*'Listado Cursos Solicitados'!D83)","v":0}]
[null,null,{"$f":"'Listado Cursos Solicitados'!D84*'Listado Cursos Solicitados'!E84","v":0},{"$f":"'Listado Cursos Solicitados'!D84*'Listado Cursos Solicitados'!F84","v":0},{"$f":"'Listado Cursos Solicitados'!D84*'Listado Cursos Solicitados'!G84","v":0},{"$f":"IF('Listado Cursos Solicitados'!H84<>\"\",'Listado Cursos Solicitados'!H84*'Listado Cursos Solicitados'!D84,'Listado Cursos Solicitados'!G84*'Listado Cursos Solicitados'!D84)","v":0}]
[null,null,{"$f":"'Listado Cursos Solicitados'!D85*'Listado Cursos Solicitados'!E85","v":0},{"$f":"'Listado Cursos Solicitados'!D85*'Listado Cursos Solicitados'!F85","v":0},{"$f":"'Listado Cursos Solicitados'!D85*'Listado Cursos Solicitados'!G85","v":0},{"$f":"IF('Listado Cursos Solicitados'!H85<>\"\",'Listado Cursos Solicitados'!H85*'Listado Cursos Solicitados'!D85,'Listado Cursos Solicitados'!G85*'Listado Cursos Solicitados'!D85)","v":0}]
[null,null,{"$f":"'Listado Cursos Solicitados'!D86*'Listado Cursos Solicitados'!E86","v":0},{"$f":"'Listado Cursos Solicitados'!D86*'Listado Cursos Solicitados'!F86","v":0},{"$f":"'Listado Cursos Solicitados'!D86*'Listado Cursos Solicitados'!G86","v":0},{"$f":"IF('Listado Cursos Solicitados'!H86<>\"\",'Listado Cursos Solicitados'!H86*'Listado Cursos Solicitados'!D86,'Listado Cursos Solicitados'!G86*'Listado Cursos Solicitados'!D86)","v":0}]
[null,null,{"$f":"'Listado Cursos Solicitados'!D87*'Listado Cursos Solicitados'!E87","v":0},{"$f":"'Listado Cursos Solicitados'!D87*'Listado Cursos Solicitados'!F87","v":0},{"$f":"'Listado Cursos Solicitados'!D87*'Listado Cursos Solicitados'!G87","v":0},{"$f":"IF('Listado Cursos Solicitados'!H87<>\"\",'Listado Cursos Solicitados'!H87*'Listado Cursos Solicitados'!D87,'Listado Cursos Solicitados'!G87*'Listado Cursos Solicitados'!D87)","v":0}]
[null,null,{"$f":"'Listado Cursos Solicitados'!D88*'Listado Cursos Solicitados'!E88","v":0},{"$f":"'Listado Cursos Solicitados'!D88*'Listado Cursos Solicitados'!F88","v":0},{"$f":"'Listado Cursos Solicitados'!D88*'Listado Cursos Solicitados'!G88","v":0},{"$f":"IF('Listado Cursos Solicitados'!H88<>\"\",'Listado Cursos Solicitados'!H88*'Listado Cursos Solicitados'!D88,'Listado Cursos Solicitados'!G88*'Listado Cursos Solicitados'!D88)","v":0}]
[null,null,{"$f":"'Listado Cursos Solicitados'!D89*'Listado Cursos Solicitados'!E89","v":0},{"$f":"'Listado Cursos Solicitados'!D89*'Listado Cursos Solicitados'!F89","v":0},{"$f":"'Listado Cursos Solicitados'!D89*'Listado Cursos Solicitados'!G89","v":0},{"$f":"IF('Listado Cursos Solicitados'!H89<>\"\",'Listado Cursos Solicitados'!H89*'Listado Cursos Solicitados'!D89,'Listado Cursos Solicitados'!G89*'Listado Cursos Solicitados'!D89)","v":0}]
[null,null,{"$f":"'Listado Cursos Solicitados'!D90*'Listado Cursos Solicitados'!E90","v":0},{"$f":"'Listado Cursos Solicitados'!D90*'Listado Cursos Solicitados'!F90","v":0},{"$f":"'Listado Cursos Solicitados'!D90*'Listado Cursos Solicitados'!G90","v":0},{"$f":"IF('Listado Cursos Solicitados'!H90<>\"\",'Listado Cursos Solicitados'!H90*'Listado Cursos Solicitados'!D90,'Listado Cursos Solicitados'!G90*'Listado Cursos Solicitados'!D90)","v":0}]
[null,null,{"$f":"'Listado Cursos Solicitados'!D91*'Listado Cursos Solicitados'!E91","v":0},{"$f":"'Listado Cursos Solicitados'!D91*'Listado Cursos Solicitados'!F91","v":0},{"$f":"'Listado Cursos Solicitados'!D91*'Listado Cursos Solicitados'!G91","v":0},{"$f":"IF('Listado Cursos Solicitados'!H91<>\"\",'Listado Cursos Solicitados'!H91*'Listado Cursos Solicitados'!D91,'Listado Cursos Solicitados'!G91*'Listado Cursos Solicitados'!D91)","v":0}]
[null,null,{"$f":"'Listado Cursos Solicitados'!D92*'Listado Cursos Solicitados'!E92","v":0},{"$f":"'Listado Cursos Solicitados'!D92*'Listado Cursos Solicitados'!F92","v":0},{"$f":"'Listado Cursos Solicitados'!D92*'Listado Cursos Solicitados'!G92","v":0},{"$f":"IF('Listado Cursos Solicitados'!H92<>\"\",'Listado Cursos Solicitados'!H92*'Listado Cursos Solicitados'!D92,'Listado Cursos Solicitados'!G92*'Listado Cursos Solicitados'!D92)","v":0}]
[null,null,{"$f":"'Listado Cursos Solicitados'!D93*'Listado Cursos Solicitados'!E93","v":0},{"$f":"'Listado Cursos Solicitados'!D93*'Listado Cursos Solicitados'!F93","v":0},{"$f":"'Listado Cursos Solicitados'!D93*'Listado Cursos Solicitados'!G93","v":0},{"$f":"IF('Listado Cursos Solicitados'!H93<>\"\",'Listado Cursos Solicitados'!H93*'Listado Cursos Solicitados'!D93,'Listado Cursos Solicitados'!G93*'Listado Cursos Solicitados'!D93)","v":0}]
[null,null,{"$f":"'Listado Cursos Solicitados'!D94*'Listado Cursos Solicitados'!E94","v":0},{"$f":"'Listado Cursos Solicitados'!D94*'Listado Cursos Solicitados'!F94","v":0},{"$f":"'Listado Cursos Solicitados'!D94*'Listado Cursos Solicitados'!G94","v":0},{"$f":"IF('Listado Cursos Solicitados'!H94<>\"\",'Listado Cursos Solicitados'!H94*'Listado Cursos Solicitados'!D94,'Listado Cursos Solicitados'!G94*'Listado Cursos Solicitados'!D94)","v":0}]
[null,null,{"$f":"'Listado Cursos Solicitados'!D95*'Listado Cursos Solicitados'!E95","v":0},{"$f":"'Listado Cursos Solicitados'!D95*'Listado Cursos Solicitados'!F95","v":0},{"$f":"'Listado Cursos Solicitados'!D95*'Listado Cursos Solicitados'!G95","v":0},{"$f":"IF('Listado Cursos Solicitados'!H95<>\"\",'Listado Cursos Solicitados'!H95*'Listado Cursos Solicitados'!D95,'Listado Cursos Solicitados'!G95*'Listado Cursos Solicitados'!D95)","v":0}]
[null,null,{"$f":"'Listado Cursos Solicitados'!D96*'Listado Cursos Solicitados'!E96","v":0},{"$f":"'Listado Cursos Solicitados'!D96*'Listado Cursos Solicitados'!F96","v":0},{"$f":"'Listado Cursos Solicitados'!D96*'Listado Cursos Solicitados'!G96","v":0},{"$f":"IF('Listado Cursos Solicitados'!H96<>\"\",'Listado Cursos Solicitados'!H96*'Listado Cursos Solicitados'!D96,'Listado Cursos Solicitados'!G96*'Listado Cursos Solicitados'!D96)","v":0}]
[null,null,{"$f":"'Listado Cursos Solicitados'!D97*'Listado Cursos Solicitados'!E97","v":0},{"$f":"'Listado Cursos Solicitados'!D97*'Listado Cursos Solicitados'!F97","v":0},{"$f":"'Listado Cursos Solicitados'!D97*'Listado Cursos Solicitados'!G97","v":0},{"$f":"IF('Listado Cursos Solicitados'!H97<>\"\",'Listado Cursos Solicitados'!H97*'Listado Cursos Solicitados'!D97,'Listado Cursos Solicitados'!G97*'Listado Cursos Solicitados'!D97)","v":0}]
[null,null,{"$f":"'Listado Cursos Solicitados'!D98*'Listado Cursos Solicitados'!E98","v":0},{"$f":"'Listado Cursos Solicitados'!D98*'Listado Cursos Solicitados'!F98","v":0},{"$f":"'Listado Cursos Solicitados'!D98*'Listado Cursos Solicitados'!G98","v":0},{"$f":"IF('Listado Cursos Solicitados'!H98<>\"\",'Listado Cursos Solicitados'!H98*'Listado Cursos Solicitados'!D98,'Listado Cursos Solicitados'!G98*'Listado Cursos Solicitados'!D98)","v":0}]
[null,null,{"$f":"'Listado Cursos Solicitados'!D99*'Listado Cursos Solicitados'!E99","v":0},{"$f":"'Listado Cursos Solicitados'!D99*'Listado Cursos Solicitados'!F99","v":0},{"$f":"'Listado Cursos Solicitados'!D99*'Listado Cursos Solicitados'!G99","v":0},{"$f":"IF('Listado Cursos Solicitados'!H99<>\"\",'Listado Cursos Solicitados'!H99*'Listado Cursos Solicitados'!D99,'Listado Cursos Solicitados'!G99*'Listado Cursos Solicitados'!D99)","v":0}]
[null,null,{"$f":"'Listado Cursos Solicitados'!D100*'Listado Cursos Solicitados'!E100","v":0},{"$f":"'Listado Cursos Solicitados'!D100*'Listado Cursos Solicitados'!F100","v":0},{"$f":"'Listado Cursos Solicitados'!D100*'Listado Cursos Solicitados'!G100","v":0},{"$f":"IF('Listado Cursos Solicitados'!H100<>\"\",'Listado Cursos Solicitados'!H100*'Listado Cursos Solicitados'!D100,'Listado Cursos Solicitados'!G100*'Listado Cursos Solicitados'!D100)","v":0}]